[Event "Mentese ELO February 2022"]
[Site "Mentese"]
[Date "2022.02.19"]
[Round "1.3"]
[White "Atayman, Evren"]
[Black "Yasar, Murathan"]
[Result "0-1"]
[ECO "C30"]
[WhiteElo "1662"]
[BlackElo "1087"]
[Annotator "NA RC"]
[PlyCount "90"]
[EventDate "2022.02.19"]
[EventCountry "TUR"]
[SourceTitle "playchess.com"]
[Source "ChessBase"]
[SourceQuality "1"]
[TimeControl "3600+30"]

1. e4 {[%emt 0:01:00]} e5 {[%emt 0:01:00]} 2. f4 {[%emt 0:00:30]} d6 {[%emt 0:02:30]} 3. Nf3 {[%emt 0:07:30]} Bg4 {[%emt 0:04:30]} 4. Bc4 {[%emt 0:01:30]} Nf6 {[%emt 0:02:30]} 5. O-O {[%emt 0:02:30]} Nc6 {[%emt 0:05:30]} 6. c3 {[%emt 0:07:30]} Qd7 {[%emt 0:05:30]} 7. d3 {[%emt 0:00:30]} O-O-O {[%emt 0:01:30]} 8. Qa4 {[%emt 0:10:30]} Bxf3 {[%emt 0:00:30]} 9. Rxf3 {[%emt 0:00:30]} d5 {[%emt 0:06:30]} 10. exd5 {[%emt 0:05:30]} Nxd5 {[%emt 0:01:30]} 11. fxe5 {[%emt 0:04:30]} Nb6 {[%emt 0:03:30]} 12. Qb3 {[%emt 0:04:30]} Nxc4 {[%emt 0:01:30]} 13. Bf4 {[%emt 0:07:08]} N4xe5 {[%emt 0:04:30]} 14. Nd2 {[%emt 0:01:38]} Nxf3+ {[%emt 0:01:30]} 15. Nxf3 {[%emt 0:00:06]} Qxd3 {[%emt 0:01:30]} 16. Qxf7 {[%emt 0:00:10]} Qd7 {[%emt 0:04:30]} 17. Qc4 {[%emt 0:00:53]} h6 {[%emt 0:04:26]} 18. b4 {[%emt 0:00:07]} Qd5 {[%emt 0:02:21]} 19. Qe2 {[%emt 0:00:43]} Qd3 {[%emt 0:00:30]} 20. Qe6+ {[%emt 0:00:30]} Qd7 {[%emt 0:00:30]} 21. Qc4 {[%emt 0:00:30]} Bd6 {[%emt 0:00:30]} 22. Be3 {[%emt 0:00:34]} Rhe8 {[%emt 0:01:34]} 23. Bf2 {[%emt 0:00:26]} Be5 {[%emt 0:00:52]} 24. b5 {[%emt 0:00:51]} Na5 {[%emt 0:00:13]} 25. Qb4 {[%emt 0:02:15]} b6 {[%emt 0:00:30]} 26. g3 {[%emt 0:01:29]} Qd6 {[%emt 0:00:33]} 27. Qe4 {[%emt 0:00:19]} Kb8 {[%emt 0:00:29]} 28. Qh4 {[%emt 0:02:06]} Bxc3 {[%emt 0:01:15]} 29. Rc1 {[%emt 0:00:02]} Bf6 {[%emt 0:01:01]} 30. Qg4 {[%emt 0:00:20]} Rf8 {[%emt 0:02:01]} 31. Be3 {[%emt 0:02:06]} Qd3 {[%emt 0:01:05]} 32. Qf4 {[%emt 0:00:22]} Qd6 {[%emt 0:01:41]} 33. Qg4 {[%emt 0:00:21]} Qd5 {[%emt 0:00:47]} 34. Qf4 {[%emt 0:00:52]} Rd6 {[%emt 0:01:10]} 35. Nd4 {[%emt 0:00:41]} Qxd4 {[%emt 0:01:46]} 36. Qf2 {[%emt 0:01:48]} Qd5 {[%emt 0:00:22]} 37. Rf1 {[%emt 0:00:12]} Qxb5 {[%emt 0:00:28]} 38. a4 {[%emt 0:00:20]} Qe5 {[%emt 0:00:16]} 39. Bf4 {[%emt 0:00:34]} Qd4 {[%emt 0:00:30]} 40. Be3 {[%emt 0:00:07]} Qd5 {[%emt 0:00:35]} 41. Qc2 {[%emt 0:00:16]} Rf7 {[%emt 0:00:13]} 42. Qg6 {[%emt 0:00:46]} Re7 {[%emt 0:00:09]} 43. Bf2 {[%emt 0:00:13]} c5 {[%emt 0:00:14]} 44. Be3 {[%emt 0:01:18]} Rxe3 {[%emt 0:01:23]} 45. Qe8+ {[%emt 0:01:11]} Rxe8 {[%emt 0:00:08]} 0-1

[Event "Mentese ELO February 2022"]
[Site "Mentese"]
[Date "2022.02.19"]
[Round "1.4"]
[White "Turk, Burak"]
[Black "Koseoglu, Osman Ogul"]
[Result "0-1"]
[ECO "E32"]
[WhiteElo "1105"]
[BlackElo "1713"]
[Annotator "NA RC"]
[PlyCount "86"]
[EventDate "2022.02.19"]
[EventCountry "TUR"]
[SourceTitle "playchess.com"]
[Source "ChessBase"]
[SourceQuality "1"]
[TimeControl "3600+30"]

1. d4 Nf6 2. c4 e6 {[%emt 0:01:30]} 3. Nc3 {[%emt 0:02:00]} Bb4 {[%emt 0:00:30]} 4. Qc2 {[%emt 0:00:30]} O-O {[%emt 0:00:30]} 5. e4 {[%emt 0:00:30]} d5 {[%emt 0:00:30]} 6. cxd5 {[%emt 0:00:30]} exd5 {[%emt 0:00:30]} 7. e5 {[%emt 0:00:30]} Ne4 {[%emt 0:00:30]} 8. Bd3 {[%emt 0:00:30]} c5 {[%emt 0:00:30]} 9. Nge2 {[%emt 0:00:30]} cxd4 {[%emt 0:02:30]} 10. Nxd4 {[%emt 0:05:30]} Nxf2 {[%emt 0:03:30]} 11. Qxf2 {[%emt 0:04:30]} Qc7 {[%emt 0:07:30]} 12. Bd2 {[%emt 0:02:30]} Qxe5+ {[%emt 0:01:30]} 13. Qe3 {[%emt 0:01:30]} Qh5 {[%emt 0:04:30]} 14. Qg5 {[%emt 0:04:30]} Re8+ {[%emt 0:00:30]} 15. Kf2 {[%emt 0:01:30]} Qxg5 {[%emt 0:03:30]} 16. Bxg5 {[%emt 0:00:30]} Bc5 {[%emt 0:00:30]} 17. Nce2 {[%emt 0:01:30]} Nc6 {[%emt 0:04:30]} 18. Be3 {[%emt 0:02:30]} Bg4 {[%emt 0:01:30]} 19. Nc2 {[%emt 0:00:30]} Bxe2 {[%emt 0:01:30]} 20. Bxe2 {[%emt 0:00:30]} d4 {[%emt 0:00:30]} 21. Nxd4 {[%emt 0:00:30]} Bxd4 {[%emt 0:00:30]} 22. Bxd4 {[%emt 0:00:30]} Nxd4 {[%emt 0:00:30]} 23. Bf3 {[%emt 0:00:30]} Rad8 {[%emt 0:04:30]} 24. Rad1 {[%emt 0:06:30]} b6 {[%emt 0:03:30]} 25. Rhe1 {[%emt 0:02:30]} Kf8 {[%emt 0:01:30]} 26. Re3 {[%emt 0:04:30]} Nxf3 {[%emt 0:02:30]} 27. Rxd8 {[%emt 0:04:30]} Rxd8 {[%emt 0:03:30]} 28. Kxf3 {[%emt 0:00:30]} Rd2 {[%emt 0:00:30]} 29. Ra3 {[%emt 0:01:30]} Rxb2 {[%emt 0:05:44]} 30. Rxa7 {[%emt 0:00:30]} g5 {[%emt 0:01:48]} 31. Rb7 {[%emt 0:01:30]} b5 {[%emt 0:00:44]} 32. h3 {[%emt 0:02:30]} h5 {[%emt 0:00:35]} 33. g3 {[%emt 0:00:31]} Kg7 {[%emt 0:00:44]} 34. g4 {[%emt 0:02:39]} h4 {[%emt 0:00:37]} 35. Ke4 {[%emt 0:01:28]} Kg6 {[%emt 0:00:49]} 36. Kd5 {[%emt 0:04:01]} Rxa2 {[%emt 0:01:11]} 37. Rxb5 {[%emt 0:00:42]} Ra3 {[%emt 0:01:08]} 38. Ke5 {[%emt 0:03:24]} Re3+ {[%emt 0:00:46]} 39. Kd6 {[%emt 0:01:17]} Rxh3 {[%emt 0:00:38]} 40. Ke7 {[%emt 0:01:23]} Re3+ {[%emt 0:00:41]} 41. Kf8 {[%emt 0:00:41]} Re4 {[%emt 0:00:59]} 42. Rb7 {[%emt 0:02:00]} Rxg4 {[%emt 0:00:43]} 43. Rxf7 {[%emt 0:00:35]} Rf4 {[%emt 0:00:38]} 0-1

[Event "Mentese ELO February 2022"]
[Site "Mentese"]
[Date "2022.02.19"]
[Round "1.5"]
[White "Taskin, Arda"]
[Black "Akpinar, Alperen Arda"]
[Result "1-0"]
[ECO "A70"]
[WhiteElo "1652"]
[BlackElo "1015"]
[Annotator "NA RC"]
[PlyCount "83"]
[EventDate "2022.02.19"]
[EventCountry "TUR"]
[SourceTitle "playchess.com"]
[Source "ChessBase"]
[SourceQuality "1"]
[TimeControl "3600+30"]

1. d4 Nf6 2. c4 e6 {[%emt 0:00:30]} 3. Nf3 {[%emt 0:01:00]} c5 {[%emt 0:00:30]} 4. d5 {[%emt 0:00:30]} exd5 {[%emt 0:01:30]} 5. cxd5 {[%emt 0:00:30]} d6 {[%emt 0:00:30]} 6. Nc3 {[%emt 0:00:30]} g6 {[%emt 0:00:30]} 7. e4 {[%emt 0:01:30]} Bg7 {[%emt 0:01:30]} 8. Bd3 {[%emt 0:01:30]} O-O {[%emt 0:01:30]} 9. O-O {[%emt 0:01:30]} Re8 {[%emt 0:07:30]} 10. h3 {[%emt 0:05:30]} a6 {[%emt 0:04:30]} 11. a4 {[%emt 0:02:30]} Nbd7 {[%emt 0:08:30]} 12. Be3 {[%emt 0:08:30]} b6 {[%emt 0:08:30]} 13. Rc1 {[%emt 0:07:30]} Bb7 {[%emt 0:12:17]} 14. b3 {[%emt 0:08:30]} Qc7 {[%emt 0:07:50]} 15. Nd2 {[%emt 0:05:30]} Ne5 {[%emt 0:01:20]} 16. Be2 {[%emt 0:00:30]} Rab8 {[%emt 0:07:35]} 17. Re1 {[%emt 0:03:30]} Re7 {[%emt 0:01:31]} 18. f4 {[%emt 0:05:34]} Ned7 {[%emt 0:00:03]} 19. Bf3 {[%emt 0:00:42]} Rbe8 {[%emt 0:00:46]} 20. Nc4 {[%emt 0:03:15]} Qb8 {[%emt 0:01:10]} 21. Bf2 {[%emt 0:02:04]} Rf8 {[%emt 0:01:33]} 22. Bg3 {[%emt 0:01:34]} Ne8 {[%emt 0:00:11]} 23. Kh2 {[%emt 0:01:25]} Bxc3 {[%emt 0:00:48]} 24. Rxc3 {[%emt 0:00:28]} b5 {[%emt 0:00:27]} 25. Nd2 {[%emt 0:01:33]} Ng7 {[%emt 0:01:15]} 26. Rce3 {[%emt 0:02:23]} Rfe8 {[%emt 0:00:20]} 27. Nf1 {[%emt 0:01:48]} Qc7 {[%emt 0:00:47]} 28. Qa1 {[%emt 0:01:26]} Rf8 {[%emt 0:00:29]} 29. Bg4 {[%emt 0:02:04]} Bc8 {[%emt 0:00:32]} 30. e5 {[%emt 0:00:41]} dxe5 {[%emt 0:00:06]} 31. fxe5 {[%emt 0:00:07]} Qb6 {[%emt 0:00:54]} 32. Bh4 {[%emt 0:01:26]} Ree8 {[%emt 0:00:26]} 33. Bg3 {[%emt 0:00:49]} Nb8 {[%emt 0:00:30]} 34. Bxc8 {[%emt 0:00:06]} Rxc8 {[%emt 0:00:06]} 35. e6 {[%emt 0:00:35]} Nf5 {[%emt 0:00:05]} 36. Rf3 {[%emt 0:00:28]} Nd4 {[%emt 0:01:03]} 37. exf7+ {[%emt 0:00:23]} Rxf7 {[%emt 0:00:03]} 38. Rxf7 {[%emt 0:00:12]} Kxf7 {[%emt 0:00:03]} 39. Qc1 {[%emt 0:01:25]} Nf5 {[%emt 0:01:44]} 40. Re6 {[%emt 0:00:23]} Qa7 {[%emt 0:00:32]} 41. Qg5 {[%emt 0:00:23]} Re8 {[%emt 0:00:26]} 42. Qf6+ {[%emt 0:00:09]} 1-0

[Event "Mentese ELO February 2022"]
[Site "Mentese"]
[Date "2022.02.19"]
[Round "2.1"]
[White "Koc, Zeki"]
[Black "Turgut, Hakan"]
[Result "0-1"]
[ECO "E60"]
[WhiteElo "1394"]
[BlackElo "1805"]
[Annotator "NA"]
[PlyCount "76"]
[EventDate "2022.02.19"]
[EventCountry "TUR"]
[SourceTitle "playchess.com"]
[Source "ChessBase"]
[SourceQuality "1"]
[TimeControl "3600+30"]

{[%evp 8,59,29,13,9,15,18,21,32767,32767,32767,32767,19,-61,-47,-87,-85,-101,-97,-100,-104,-97,-100,-99,-81,-116,-104,-187,-191,-206,-214,-220,-203,-221,-159,32767,32767,-224,32767,32767,-156,-179,-165,-129,-138,32767,32767,-156,-150,-166,-92,32767,32767,-377]} 1. d4 {[%emt 0:02:00]} Nf6 {[%emt 0:01:00]} 2. Nf3 {[%emt 0:00:00]} g6 {[%emt 0:00:30]} 3. c4 {[%emt 0:02:00]} Bg7 {[%emt 0:02:30]} 4. g3 {[%emt 0:02:30]} c6 {[%emt 0:00:30]} 5. Bg2 {[%emt 0:00:30]} O-O {[%emt 0:00:30]} 6. O-O {[%emt 0:00:30]} d5 {[%emt 0:00:00]} 7. b3 {[%emt 0:04:30]} c5 {[%emt 0:07:00]} 8. cxd5 {[%emt 0:01:30]} Nxd5 {[%emt 0:04:30]} 9. Bb2 {[%emt 0:05:30]} Nc6 {[%emt 0:03:30]} 10. a3 {[%emt 0:05:30]} (10. Qd2 $1 $11) 10... Nc7 {[%emt 0:08:30]} 11. e3 {[%emt 0:03:30]} Bg4 {[%emt 0:02:30]} 12. h3 {[%emt 0:02:30]} Bxf3 {[%emt 0:01:30]} 13. Bxf3 {[%emt 0:03:30]} cxd4 {[%emt 0:00:30]} 14. Bxc6 {[%emt 0:00:30]} bxc6 {[%emt 0:00:30]} 15. Bxd4 {[%emt 0:00:30]} Bxd4 {[%emt 0:00:30]} 16. exd4 {[%emt 0:04:30]} Ne6 {[%emt 0:03:30]} 17. d5 {[%emt 0:00:30]} (17. Nd2 $17) 17... cxd5 {[%emt 0:01:30]} 18. Nc3 {[%emt 0:01:30]} d4 {[%emt 0:00:00]} 19. Ne4 {[%emt 0:03:30]} f5 {[%emt 0:05:00]} 20. Nd2 {[%emt 0:00:30]} Ng5 {[%emt 0:04:30]} 21. h4 {[%emt 0:02:30]} Nf7 {[%emt 0:01:30]} 22. f4 {[%emt 0:02:30]} e5 {[%emt 0:01:30]} 23. Nf3 {[%emt 0:00:30]} Qd5 {[%emt 0:04:01]} 24. fxe5 {[%emt 0:00:30]} Nxe5 {[%emt 0:00:31]} 25. Nxe5 {[%emt 0:01:30]} Qxe5 {[%emt 0:00:02]} 26. Qd3 {[%emt 0:00:30]} Rac8 {[%emt 0:01:13]} 27. Rfe1 {[%emt 0:00:30]} Qd5 {[%emt 0:02:07]} 28. Rac1 {[%emt 0:00:57]} Rfe8 {[%emt 0:00:37]} ({Black should try} 28... Rxc1 $19 29. Rxc1 Qe5) 29. Rxc8 {[%emt 0:03:43]} Rxc8 {[%emt 0:00:02]} 30. Qa6 $19 {[%emt 0:00:51]} (30. Kf2 $17 {only move.}) 30... Rc3 {[%emt 0:01:30]} 31. Kh2 {[%emt 0:07:03]} d3 {[%emt 0:00:51]} 32. Qe6+ {[%emt 0:00:30]} Qxe6 {[%emt 0:00:30]} 33. Rxe6 {[%emt 0:00:30]} Rxb3 {[%emt 0:00:30]} 34. a4 {[%emt 0:00:30]} Rb2+ {[%emt 0:00:30]} 35. Kh3 {[%emt 0:00:30]} d2 {[%emt 0:00:30]} 36. Rd6 {[%emt 0:00:30]} a5 {[%emt 0:00:30]} 37. h5 {[%emt 0:00:30]} g5 {[%emt 0:00:30]} 38. h6 {[%emt 0:00:30]} Kf7 {[%emt 0:01:06]} 0-1

[Event "Mentese ELO February 2022"]
[Site "Mentese"]
[Date "2022.02.19"]
[Round "2.2"]
[White "Inci, Okan"]
[Black "Kalender, Yigit"]
[Result "1-0"]
[ECO "E04"]
[WhiteElo "1703"]
[BlackElo "1384"]
[Annotator "NA"]
[PlyCount "119"]
[EventDate "2022.02.19"]
[EventCountry "TUR"]
[SourceTitle "playchess.com"]
[Source "ChessBase"]
[SourceQuality "1"]
[TimeControl "3600+30"]

1. d4 {[%emt 0:01:00]} Nf6 {[%emt 0:04:00]} 2. c4 {[%emt 0:00:00]} e6 {[%emt 0:00:30]} 3. Nf3 {[%emt 0:00:00]} a6 {[%emt 0:00:30]} 4. g3 {[%emt 0:02:30]} d5 {[%emt 0:00:00]} 5. Bg2 {[%emt 0:00:00]} dxc4 {[%emt 0:00:00]} 6. O-O {[%emt 0:00:00]} Nc6 {[%emt 0:03:30]} 7. a4 {[%emt 0:01:30]} Be7 {[%emt 0:01:30]} 8. Nc3 {[%emt 0:01:30]} O-O {[%emt 0:00:30]} 9. e4 {[%emt 0:00:30]} Na5 {[%emt 0:02:30]} 10. Be3 {[%emt 0:01:30]} Ng4 {[%emt 0:01:30]} 11. Bf4 {[%emt 0:01:30]} Nf6 {[%emt 0:05:30]} 12. Qe2 {[%emt 0:01:30]} Rb8 {[%emt 0:04:30]} 13. Rfd1 {[%emt 0:02:30]} Nh5 {[%emt 0:04:30]} 14. Be3 {[%emt 0:00:30]} Nf6 {[%emt 0:00:30]} 15. Ne5 {[%emt 0:01:30]} Nb3 {[%emt 0:02:30]} 16. Rab1 {[%emt 0:01:30]} Bd7 {[%emt 0:00:30]} 17. Qxc4 {[%emt 0:04:30]} Na5 {[%emt 0:00:30]} 18. Qa2 {[%emt 0:01:30]} Bb4 {[%emt 0:02:30]} 19. Nd3 {[%emt 0:02:30]} Qe7 {[%emt 0:04:30]} 20. Rbc1 {[%emt 0:15:30]} Rfc8 {[%emt 0:03:30]} 21. e5 {[%emt 0:05:30]} Ne8 {[%emt 0:03:30]} 22. Ne4 {[%emt 0:00:30]} b6 {[%emt 0:04:30]} 23. Nf4 {[%emt 0:06:24]} c5 {[%emt 0:03:47]} 24. d5 {[%emt 0:04:27]} h6 {[%emt 0:08:09]} 25. dxe6 {[%emt 0:03:23]} Bxe6 {[%emt 0:04:56]} 26. Nxe6 {[%emt 0:00:30]} fxe6 {[%emt 0:00:30]} 27. Bh3 {[%emt 0:00:30]} c4 {[%emt 0:00:30]} 28. Bd2 {[%emt 0:00:30]} Bxd2 {[%emt 0:00:30]} 29. Nxd2 {[%emt 0:03:11]} b5 {[%emt 0:00:46]} 30. axb5 {[%emt 0:00:48]} Rxb5 {[%emt 0:00:03]} 31. Nxc4 {[%emt 0:01:07]} Nxc4 {[%emt 0:00:23]} 32. Rxc4 {[%emt 0:00:14]} Rxc4 {[%emt 0:01:48]} 33. Qxc4 {[%emt 0:00:13]} Rxe5 {[%emt 0:01:16]} 34. Qxa6 {[%emt 0:00:41]} Nf6 {[%emt 0:01:47]} 35. Qc8+ {[%emt 0:00:30]} Kh7 {[%emt 0:00:23]} 36. Qc2+ {[%emt 0:00:17]} Kg8 {[%emt 0:00:19]} 37. Qc4 {[%emt 0:00:46]} Kh8 {[%emt 0:01:26]} 38. b4 {[%emt 0:00:46]} Re4 {[%emt 0:00:06]} 39. Qc8+ {[%emt 0:00:14]} Kh7 {[%emt 0:00:25]} 40. Qc2 {[%emt 0:01:00]} Qxb4 {[%emt 0:00:32]} 41. Bg2 {[%emt 0:00:34]} Qc4 {[%emt 0:01:22]} 42. Bxe4+ {[%emt 0:00:17]} Qxe4 {[%emt 0:00:13]} 43. Qxe4+ {[%emt 0:00:25]} Nxe4 {[%emt 0:00:01]} 44. Re1 {[%emt 0:00:35]} Ng5 {[%emt 0:00:10]} 45. Kg2 {[%emt 0:00:17]} e5 {[%emt 0:00:31]} 46. Rxe5 {[%emt 0:00:12]} Kg6 {[%emt 0:00:01]} 47. Rxg5+ {[%emt 0:00:35]} Kxg5 {[%emt 0:00:23]} 48. h4+ {[%emt 0:00:09]} Kf5 {[%emt 0:00:33]} 49. Kf3 {[%emt 0:00:14]} h5 {[%emt 0:00:04]} 50. Ke3 {[%emt 0:01:41]} Ke5 {[%emt 0:01:36]} 51. f3 {[%emt 0:00:46]} g6 {[%emt 0:00:47]} 52. g4 {[%emt 0:00:22]} hxg4 {[%emt 0:01:01]} 53. fxg4 {[%emt 0:00:02]} Ke6 {[%emt 0:00:30]} 54. Ke4 {[%emt 0:00:13]} Kf6 {[%emt 0:00:26]} 55. Kd5 {[%emt 0:01:14]} Kf7 {[%emt 0:00:15]} 56. Ke5 {[%emt 0:00:42]} Kg7 {[%emt 0:00:55]} 57. Ke6 {[%emt 0:00:17]} Kh7 {[%emt 0:00:20]} 58. Kf7 {[%emt 0:01:15]} Kh6 {[%emt 0:00:29]} 59. Kf6 {[%emt 0:01:16]} g5 {[%emt 0:00:44]} 60. h5 {[%emt 0:00:09]} 1-0

[Event "Mentese ELO February 2022"]
[Site "Mentese"]
[Date "2022.02.19"]
[Round "2.3"]
[White "Koseoglu, Osman Ogul"]
[Black "Kamisli, Yigit"]
[Result "0-1"]
[ECO "E90"]
[WhiteElo "1713"]
[BlackElo "1427"]
[Annotator "NA"]
[PlyCount "60"]
[EventDate "2022.02.19"]
[EventCountry "TUR"]
[SourceTitle "playchess.com"]
[Source "ChessBase"]
[SourceQuality "1"]
[TimeControl "3600+30"]

1. d4 {[%emt 0:04:00]} Nf6 {[%emt 0:01:00]} 2. Nf3 {[%emt 0:00:30]} g6 {[%emt 0:00:30]} 3. c4 {[%emt 0:00:30]} Bg7 {[%emt 0:00:30]} 4. Nc3 {[%emt 0:00:30]} O-O {[%emt 0:00:30]} 5. e4 {[%emt 0:00:00]} d6 {[%emt 0:00:00]} 6. h3 {[%emt 0:00:00]} e5 {[%emt 0:01:00]} 7. d5 {[%emt 0:00:30]} a5 {[%emt 0:00:30]} 8. Be3 {[%emt 0:00:30]} Na6 {[%emt 0:02:30]} 9. g4 {[%emt 0:05:30]} Nc5 {[%emt 0:06:30]} 10. Nd2 {[%emt 0:00:00]} Bd7 {[%emt 0:06:30]} 11. b3 {[%emt 0:06:00]} c6 {[%emt 0:06:30]} 12. Rc1 {[%emt 0:06:30]} Ne8 {[%emt 0:07:30]} 13. a3 {[%emt 0:03:30]} f5 {[%emt 0:03:30]} 14. gxf5 {[%emt 0:00:30]} gxf5 {[%emt 0:00:30]} 15. Rg1 {[%emt 0:00:30]} f4 {[%emt 0:04:30]} 16. Bxc5 {[%emt 0:00:30]} dxc5 {[%emt 0:00:00]} 17. Qh5 {[%emt 0:01:30]} Kh8 {[%emt 0:03:00]} 18. Nf3 {[%emt 0:03:30]} Qe7 {[%emt 0:03:30]} 19. Rg5 {[%emt 0:01:30]} Nf6 {[%emt 0:06:50]} 20. Rxe5 {[%emt 0:02:30]} Qd6 {[%emt 0:03:48]} 21. Qh4 {[%emt 0:03:30]} Nxd5 {[%emt 0:05:54]} 22. Rh5 {[%emt 0:15:19]} Nxc3 {[%emt 0:02:01]} 23. Rxh7+ {[%emt 0:08:57]} Kg8 {[%emt 0:00:30]} 24. Ng5 {[%emt 0:00:30]} Qg6 {[%emt 0:02:18]} 25. Bd3 {[%emt 0:01:59]} Rae8 {[%emt 0:01:08]} 26. f3 {[%emt 0:00:23]} Re5 {[%emt 0:00:39]} 27. Rh5 {[%emt 0:02:19]} Bf6 {[%emt 0:01:29]} 28. Rc2 {[%emt 0:01:47]} Rxg5 {[%emt 0:00:27]} 29. Rxg5 {[%emt 0:01:01]} Bxg5 {[%emt 0:00:21]} 30. e5 {[%emt 0:00:26]} Bxh4+ {[%emt 0:00:12]} 0-1

[Event "Mentese ELO February 2022"]
[Site "Mentese"]
[Date "2022.02.19"]
[Round "2.4"]
[White "Demir, Mehmet Sait"]
[Black "Taskin, Arda"]
[Result "0-1"]
[ECO "B55"]
[WhiteElo "1682"]
[BlackElo "1652"]
[Annotator "NA RC"]
[PlyCount "53"]
[EventDate "2022.02.19"]
[EventCountry "TUR"]
[SourceTitle "playchess.com"]
[Source "ChessBase"]
[SourceQuality "1"]
[TimeControl "3600+30"]

1. e4 {[%emt 0:01:00]} c5 {[%emt 0:02:00]} 2. Nf3 {[%emt 0:01:30]} d6 {[%emt 0:00:30]} 3. d4 {[%emt 0:00:30]} cxd4 {[%emt 0:00:30]} 4. Nxd4 {[%emt 0:00:30]} Nf6 {[%emt 0:00:30]} 5. Bd3 {[%emt 0:01:30]} a6 {[%emt 0:00:30]} 6. O-O {[%emt 0:00:30]} e5 {[%emt 0:01:30]} 7. Nf3 {[%emt 0:03:30]} Be7 {[%emt 0:01:30]} 8. Nc3 {[%emt 0:00:30]} O-O {[%emt 0:01:30]} 9. Re1 {[%emt 0:01:30]} Nbd7 {[%emt 0:01:30]} 10. Bg5 {[%emt 0:01:30]} b5 {[%emt 0:02:30]} 11. a3 {[%emt 0:00:30]} Bb7 {[%emt 0:00:30]} 12. h3 {[%emt 0:01:30]} Rc8 {[%emt 0:03:30]} 13. Qe2 {[%emt 0:00:30]} Re8 {[%emt 0:01:30]} 14. Rad1 {[%emt 0:01:30]} Nc5 {[%emt 0:03:30]} 15. Be3 {[%emt 0:02:30]} Qc7 {[%emt 0:01:30]} 16. Nd2 {[%emt 0:02:30]} Bf8 {[%emt 0:05:30]} 17. Bg5 {[%emt 0:01:30]} Be7 {[%emt 0:01:30]} 18. Be3 {[%emt 0:01:30]} Rcd8 {[%emt 0:03:30]} 19. f3 {[%emt 0:01:30]} Qc8 {[%emt 0:03:30]} 20. Qf2 {[%emt 0:01:30]} Ne6 {[%emt 0:02:30]} 21. f4 {[%emt 0:01:30]} exf4 {[%emt 0:01:30]} 22. Bxf4 {[%emt 0:00:30]} Qc5 {[%emt 0:01:30]} 23. Kh1 {[%emt 0:00:30]} Nh5 {[%emt 0:02:30]} 24. Qe3 {[%emt 0:04:30]} Bh4 {[%emt 0:02:30]} 25. Qxc5 {[%emt 0:02:30]} dxc5 {[%emt 0:00:30]} 26. Re3 {[%emt 0:01:30]} Bg5 {[%emt 0:00:30]} 27. Rf3 {[%emt 0:11:30]} 0-1

[Event "Mentese ELO February 2022"]
[Site "Mentese"]
[Date "2022.02.19"]
[Round "2.5"]
[White "Kolat, Ata"]
[Black "Turkoglu, Sila Eylul"]
[Result "1/2-1/2"]
[ECO "C10"]
[WhiteElo "1534"]
[BlackElo "1291"]
[Annotator "NA"]
[PlyCount "104"]
[EventDate "2022.02.19"]
[EventCountry "TUR"]
[SourceTitle "playchess.com"]
[Source "ChessBase"]
[SourceQuality "1"]
[TimeControl "3600+30"]

1. e4 {[%emt 0:01:00]} e6 {[%emt 0:01:00]} 2. d4 {[%emt 0:00:00]} d5 {[%emt 0:00:00]} 3. Nd2 {[%emt 0:00:00]} dxe4 {[%emt 0:00:00]} 4. Nxe4 {[%emt 0:00:00]} Nd7 {[%emt 0:00:00]} 5. Bd3 {[%emt 0:00:00]} Ngf6 {[%emt 0:00:00]} 6. Qe2 {[%emt 0:00:30]} Be7 {[%emt 0:01:30]} 7. Nf3 {[%emt 0:00:30]} O-O {[%emt 0:01:30]} 8. O-O {[%emt 0:00:30]} Nxe4 {[%emt 0:06:30]} 9. Bxe4 {[%emt 0:00:30]} Nf6 {[%emt 0:00:30]} 10. Bd3 {[%emt 0:00:30]} b6 {[%emt 0:03:30]} 11. Rd1 {[%emt 0:02:30]} Bb7 {[%emt 0:01:30]} 12. c3 {[%emt 0:02:30]} Qc8 {[%emt 0:02:30]} 13. Bf4 {[%emt 0:01:30]} Rd8 {[%emt 0:08:30]} 14. Rd2 {[%emt 0:12:30]} h6 {[%emt 0:02:30]} 15. h3 {[%emt 0:02:30]} Bd6 {[%emt 0:03:30]} 16. Ne5 {[%emt 0:04:30]} c5 {[%emt 0:11:30]} 17. dxc5 {[%emt 0:04:30]} Qxc5 {[%emt 0:02:30]} 18. Rad1 {[%emt 0:04:30]} Bc7 {[%emt 0:05:29]} 19. Bc2 {[%emt 0:06:30]} Rxd2 {[%emt 0:04:09]} 20. Rxd2 {[%emt 0:00:30]} Rd8 {[%emt 0:01:03]} 21. Rxd8+ {[%emt 0:02:30]} Bxd8 {[%emt 0:00:02]} 22. Bb3 {[%emt 0:04:43]} Bd5 {[%emt 0:10:23]} 23. Nd3 {[%emt 0:09:12]} Qb5 {[%emt 0:00:30]} 24. Bxd5 {[%emt 0:00:30]} Nxd5 {[%emt 0:00:30]} 25. Bg3 {[%emt 0:00:30]} Bf6 {[%emt 0:00:30]} 26. Qe4 {[%emt 0:00:30]} Qa6 {[%emt 0:00:30]} 27. a3 {[%emt 0:00:30]} Qc8 {[%emt 0:02:34]} 28. c4 {[%emt 0:00:36]} Ne7 {[%emt 0:00:18]} 29. b3 {[%emt 0:00:59]} Nf5 {[%emt 0:01:00]} 30. Be5 {[%emt 0:01:06]} Be7 {[%emt 0:00:56]} 31. b4 {[%emt 0:02:02]} f6 {[%emt 0:00:29]} 32. Bh2 {[%emt 0:00:43]} Kf7 {[%emt 0:00:30]} 33. g4 {[%emt 0:01:55]} Nd6 {[%emt 0:00:26]} 34. Bxd6 {[%emt 0:00:13]} Bxd6 {[%emt 0:00:01]} 35. Qd4 {[%emt 0:00:35]} Be5 {[%emt 0:01:03]} 36. Qe4 {[%emt 0:00:56]} Bd6 {[%emt 0:00:29]} 37. Kf1 {[%emt 0:01:02]} a5 {[%emt 0:00:31]} 38. Ke2 {[%emt 0:00:57]} f5 {[%emt 0:00:31]} 39. gxf5 {[%emt 0:00:32]} exf5 {[%emt 0:00:01]} 40. Qd4 {[%emt 0:00:23]} Qe6+ {[%emt 0:00:31]} 41. Kd2 {[%emt 0:00:06]} Bc7 {[%emt 0:00:48]} 42. Kc3 {[%emt 0:01:46]} g5 {[%emt 0:00:38]} 43. Kb3 {[%emt 0:02:22]} axb4 {[%emt 0:00:21]} 44. axb4 {[%emt 0:00:17]} b5 {[%emt 0:00:42]} 45. Nc5 {[%emt 0:00:58]} Qxc4+ {[%emt 0:00:30]} 46. Qxc4+ {[%emt 0:00:04]} bxc4+ {[%emt 0:00:01]} 47. Kxc4 {[%emt 0:00:07]} Ke7 {[%emt 0:00:58]} 48. Kd5 {[%emt 0:00:30]} g4 {[%emt 0:00:17]} 49. hxg4 {[%emt 0:00:58]} fxg4 {[%emt 0:00:02]} 50. Ke4 {[%emt 0:00:21]} Kf6 {[%emt 0:01:10]} 51. Nd3 {[%emt 0:01:49]} g3 {[%emt 0:00:32]} 52. fxg3 {[%emt 0:00:07]} Bxg3 {[%emt 0:00:01]} 1/2-1/2